fUST/lending_fUST_20250426
["ID","MTS","AMOUNT","RATE_DAILY","PERIOD"]
[359044607,1745671841505,-168.80988721,0.00017273,2]
[359044608,1745671841515,-340.57265342,0.00017273,2]
[359044610,1745671841525,-500.0,0.00017273,2]
[359044613,1745671841536,-500.0,0.00017273,2]
[359044614,1745671841547,-500.0,0.00017273,2]
[359044616,1745671841557,-500.0,0.00017273,2]
[359044619,1745671841566,-500.0,0.00017273,2]
[359044621,1745671841578,-500.0,0.00017273,2]
[359044623,1745671841589,-500.0,0.00017273,2]
[359044625,1745671841598,-500.0,0.00017273,2]
[359044627,1745671841608,-500.0,0.00017273,2]
[359044629,1745671841617,-500.0,0.00017273,2]
[359044631,1745671841626,-500.0,0.00017273,2]
[359044633,1745671841636,-500.0,0.00017273,2]
[359044635,1745671841645,-500.0,0.00017273,2]
[359044637,1745671841654,-500.0,0.00017273,2]
[359044639,1745671841664,-500.0,0.00017273,2]
[359044641,1745671841674,-637.25114022,0.00017273,2]
[359044642,1745671841686,-500.0,0.00017273,2]
[359044644,1745671841695,-547.64101419,0.00017273,2]
[359044646,1745671841705,-500.0,0.00017273,2]
[359044648,1745671841714,-500.0,0.00017273,2]
[359044650,1745671841724,-151.0,0.00017273,2]
[359044668,1745671841870,-698.377007,0.00017273,2]
[359044670,1745671841897,-698.377007,0.00017273,2]
[359044672,1745671841906,-279.136386,0.00017273,2]
[359044673,1745671841916,-279.136386,0.00017273,2]
[359044675,1745671841925,-126825.68741135,0.000173,2]
[359044677,1745671841935,-205.0,0.000173,2]
[359044679,1745671841945,-205.0,0.000173,2]
[359044681,1745671841955,-205.0,0.000173,2]
[359044683,1745671841964,-205.0,0.000173,2]
[359044685,1745671841974,-205.0,0.000173,2]
[359044687,1745671841983,-205.0,0.000173,2]
[359044689,1745671841992,-205.0,0.000173,2]
[359044691,1745671842002,-154.498067,0.000173,2]
[359044693,1745671842012,-151.0,0.000173,2]
[359044695,1745671842022,-151.0,0.000173,2]
[359044697,1745671842032,-151.0,0.000173,2]
[359044699,1745671842042,-151.0,0.000173,2]
[359044701,1745671842052,-151.0,0.000173,2]
[359044703,1745671842063,-263.31041,0.000173,2]
[359044705,1745671842072,-297.901126,0.000173,2]
[359044707,1745671842082,-698.377007,0.000173,2]
[359044709,1745671842092,-698.377007,0.000173,2]
[359044711,1745671842103,-1505.529484,0.000173,2]
[359044713,1745671842113,-1505.529485,0.000173,2]
[359044715,1745671842123,-279.136386,0.000173,2]
[359044716,1745671842133,-279.136386,0.000173,2]
[359044718,1745671842143,-3118.65051926,0.000175,4]
[359044720,1745671842152,-685.0,0.000175,2]
[359044722,1745671842162,-500.0,0.00017534,2]
[359044724,1745671842172,-899.33,0.00017534,2]
[359044726,1745671842182,-400.0,0.00017534,2]
[359044728,1745671842191,-160.77360596,0.00017534,2]
[359044730,1745671842201,-1029.77,0.00017534,2]
[359044732,1745671842211,-401.07,0.00017534,2]
[359044734,1745671842221,-698.377007,0.00017534,2]
[359044736,1745671842230,-698.377011,0.00017534,2]
[359044738,1745671842240,-400.0,0.00017534,2]
[359044740,1745671842250,-430.47,0.00017534,2]
[359044742,1745671842260,-934.97,0.00017534,2]
[359044744,1745671842270,-400.0,0.00017534,2]
[359044746,1745671842279,-279.136386,0.00017534,2]
[359044748,1745671842289,-279.13637942,0.00017534,2]
[359044750,1745671842298,-400.0,0.00017534,2]
[359044752,1745671842308,-618.81,0.00017534,2]
[359044754,1745671842318,-400.0,0.00017534,2]
[359044756,1745671842327,-1173.18,0.00017534,2]
[359044758,1745671842337,-400.0,0.00017534,2]
[359044760,1745671842346,-400.0,0.00017534,2]
[359044761,1745671842356,-1208.86,0.00017534,2]
[359044763,1745671842365,-1683.16,0.00017534,2]
[359044765,1745671842375,-400.0,0.00017534,2]
[359044767,1745671842385,-400.0,0.00017534,2]
[359044769,1745671842394,-400.0,0.00017534,2]
[359044771,1745671842404,-400.0,0.00017534,2]
[359044773,1745671842413,-3044.62,0.00017534,2]
[359044775,1745671842423,-556.97,0.00017534,2]
[359044777,1745671842432,-534.05,0.00017534,2]
[359044779,1745671842442,-562.28,0.00017534,2]
[359044781,1745671842453,-611.79,0.00017534,2]
[359044783,1745671842462,-480.65701099,0.00017534,2]
[359044785,1745671842471,-660.21,0.00017534,2]
[359044787,1745671842481,-400.0,0.00017534,2]
[359044789,1745671842491,-863.44,0.00017534,2]
[359044790,1745671842500,-400.0,0.00017534,2]
[359044792,1745671842510,-400.0,0.00017534,2]
[359044794,1745671842521,-400.0,0.00017534,2]
[359044796,1745671842531,-1053.75,0.00017534,2]
[359044798,1745671842541,-853.05,0.00017534,2]
[359044800,1745671842551,-400.0,0.00017534,2]
[359044802,1745671842560,-1459.21,0.00017534,2]
[359044804,1745671842570,-400.0,0.00017534,2]
[359044806,1745671842579,-1113.27,0.00017534,2]
[359044808,1745671842589,-902.53,0.00017534,2]
[359044810,1745671842598,-400.0,0.00017534,2]
[359044812,1745671842607,-400.0,0.00017534,2]
[359044814,1745671842617,-400.0,0.00017534,2]
[359044816,1745671842628,-1290.16,0.00017534,2]
[359044818,1745671842638,-400.0,0.00017534,2]
[359044820,1745671842648,-45.60574719,0.00017534,2]
[359044836,1745671842798,-1186.93425281,0.00017534,2]
[359044838,1745671842808,-49.2449779,0.00017534,2]
[359044840,1745671842820,-381.8850221,0.00017534,2]
[359044842,1745671842829,-182.26,0.00017534,2]
[359044844,1745671842839,-1144.07,0.00017534,2]
[359044846,1745671842849,-883.41,0.00017534,2]
[359044848,1745671842859,-400.0,0.00017534,2]
[359044850,1745671842869,-400.0,0.00017534,2]
[359044852,1745671842878,-400.0,0.00017534,2]
[359044854,1745671842889,-1083.83,0.00017534,2]
[359044856,1745671842899,-947.63,0.00017534,2]
[359044858,1745671842909,-1131.29248703,0.00017582,2]
[359044860,1745671842918,-582.43804407,0.000176,2]
[359044862,1745671842928,-2801.34448149,0.00017693,2]
[359044864,1745671842938,-260.37264471,0.00017766,2]
[359044866,1745671842950,-830.84320787,0.00017766,2]
[359044868,1745671842960,-163.65679213,0.00017808,2]
[359045161,1745671846632,-336.34320787,0.00017808,2]
[359045163,1745671846642,-899.33,0.00017808,2]
[359045165,1745671846651,-151.856437,0.00017808,2]
[359045166,1745671846661,-151.0,0.00017808,2]
[359045168,1745671846670,-151.0,0.00017808,2]
[359045170,1745671846681,-151.0,0.00017808,2]
[359045172,1745671846692,-367.67169761,0.00017808,2]
[359045174,1745671846702,-1029.77,0.00017808,2]
[359045176,1745671846712,-401.07,0.00017808,2]
[359045178,1745671846722,-400.0,0.00017808,2]
[359045180,1745671846732,-430.47,0.00017808,2]
[359045183,1745671846742,-934.97,0.00017808,2]
[359045184,1745671846751,-400.0,0.00017808,2]
[359045186,1745671846764,-618.81,0.00017808,2]
[359045189,1745671846774,-400.0,0.00017808,2]
[359045190,1745671846784,-1173.18,0.00017808,2]
[359045193,1745671846794,-400.0,0.00017808,2]
[359045194,1745671846804,-400.0,0.00017808,2]
[359045197,1745671846814,-1683.16,0.00017808,2]
[359045198,1745671846823,-400.0,0.00017808,2]
[359045200,1745671846833,-400.0,0.00017808,2]
[359045202,1745671846842,-400.0,0.00017808,2]
[359045204,1745671846851,-400.0,0.00017808,2]
[359045206,1745671846861,-3044.62,0.00017808,2]
[359045208,1745671846871,-556.97,0.00017808,2]
[359045210,1745671846881,-562.28,0.00017808,2]
[359045212,1745671846890,-611.79,0.00017808,2]
[359045214,1745671846900,-660.21,0.00017808,2]
[359045216,1745671846910,-400.0,0.00017808,2]
[359045218,1745671846920,-863.44,0.00017808,2]
[359045220,1745671846932,-400.0,0.00017808,2]
[359045222,1745671846942,-400.0,0.00017808,2]
[359045224,1745671846951,-400.0,0.00017808,2]
[359045226,1745671846960,-1053.75,0.00017808,2]
[359045228,1745671846970,-853.05,0.00017808,2]
[359045230,1745671846980,-400.0,0.00017808,2]
[359045232,1745671846990,-1459.21,0.00017808,2]
[359045234,1745671847000,-400.0,0.00017808,2]
[359045236,1745671847009,-1113.27,0.00017808,2]
[359045238,1745671847018,-902.53,0.00017808,2]
[359045240,1745671847028,-281.71035949,0.00017808,2]
[359045242,1745671847038,-400.0,0.00017808,2]
[359045244,1745671847048,-400.0,0.00017808,2]
[359045246,1745671847057,-1290.16,0.00017808,2]
[359045248,1745671847067,-400.0,0.00017808,2]
[359045250,1745671847077,-1232.54,0.00017808,2]
[359045252,1745671847086,-431.13,0.00017808,2]
[359045254,1745671847097,-1144.07,0.00017808,2]
[359045256,1745671847106,-883.41,0.00017808,2]
[359045258,1745671847116,-135.72597593,0.00017808,2]
[359045382,1745671863127,24.75576831,0.00014997,2]
[359045395,1745672745430,11136.9396523,0.00023,120]
[359045397,1745672841153,-708.61969788,0.00015427,2]
[359045398,1745672841175,-410.4127238,0.00015582,2]
[359045399,1745672841197,-868.57584828,0.00016338,2]
[359045400,1745672841220,-167.63532704,0.00016338,2]
[359045401,1745672841242,-289.0,0.00016429,2]
[359045402,1745672841264,-300.0,0.00016429,2]
[359045403,1745672841292,-500.0,0.00016429,2]
[359045404,1745672841316,-500.0,0.00016429,2]
[359045405,1745672841339,-294.20061631,0.00016429,2]
[359045406,1745672841363,-500.0,0.00016429,2]
[359045407,1745672841386,-500.0,0.00016429,2]
[359045408,1745672841408,-500.0,0.00016429,2]
[359045409,1745672841430,-474.86515172,0.00016429,2]
[359045410,1745672841452,-500.0,0.00016429,2]
[359045411,1745672841480,-500.0,0.00016429,2]
[359045412,1745672841504,-500.0,0.00016429,2]
[359045413,1745672841532,-500.0,0.00016429,2]
[359045414,1745672841561,-500.0,0.00016429,2]
[359045415,1745672841587,-500.0,0.00016429,2]
[359045416,1745672841610,-500.0,0.00016429,2]
[359045417,1745672841634,-602.78250364,0.00016429,2]
[359045418,1745672841662,-500.0,0.00016429,2]
[359045419,1745672841684,-500.0,0.00016429,2]
[359045420,1745672841708,-500.0,0.00016429,2]
[359045421,1745672841735,-500.0,0.00016429,2]
[359045422,1745672841756,-500.0,0.00016429,2]
[359045423,1745672841778,-500.0,0.00016429,2]
[359045424,1745672841799,-500.0,0.00016429,2]
[359045425,1745672841827,-500.0,0.00016429,2]
[359045426,1745672841848,-500.0,0.00016429,2]
[359045427,1745672841876,-500.0,0.00016429,2]
[359045428,1745672841898,-500.0,0.00016429,2]
[359045429,1745672841920,-500.0,0.00016429,2]
[359045430,1745672841948,-416.96814325,0.00016429,2]
[359045431,1745672841969,-382.25384058,0.00016429,2]
[359045432,1745672841996,-500.0,0.00016429,2]
[359045433,1745672842017,-500.0,0.00016429,2]
[359045434,1745672842045,-500.0,0.00016429,2]
[359045435,1745672842069,-500.0,0.00016429,2]
[359045436,1745672842097,-500.0,0.00016429,2]
[359045437,1745672842118,-500.0,0.00016429,2]
[359045438,1745672842146,-500.0,0.00016429,2]
[359045439,1745672842172,-224.75676406,0.0001643,2]
[359045440,1745672842201,-500.0,0.0001643,2]
[359045441,1745672842230,-500.0,0.0001643,2]
[359045442,1745672842258,-500.0,0.0001643,2]
[359045443,1745672842286,-500.0,0.0001643,2]
[359045444,1745672842307,-201.94896919,0.0001643,2]
[359045445,1745672842335,-500.0,0.0001643,2]
[359045446,1745672842362,-500.0,0.0001643,2]
[359045447,1745672842388,-500.0,0.0001643,2]
[359045448,1745672842414,-500.0,0.0001643,2]
[359045449,1745672842439,-500.0,0.0001643,2]
[359045450,1745672842464,-500.0,0.0001643,2]
[359045451,1745672842490,-500.0,0.0001643,2]
[359045452,1745672842517,-53.245869,0.0001643,2]
[359045453,1745672842563,-168.93608444,0.0001643,2]
[359045454,1745672852123,-277.81804656,0.0001643,2]
[359045455,1745672852151,-500.0,0.0001643,2]
[359045456,1745672852179,-248.89798227,0.0001643,2]
[359045472,1745673031905,-160.0,0.00016261,2]
[359045473,1745673031915,-1887.82904547,0.00016264,2]
[359045474,1745673031925,-817.6601786,0.00016338,2]
[359045475,1745673031935,-300.0,0.00016427,2]
[359045476,1745673031946,-182.0,0.00016427,2]
[359045478,1745673031956,-8103.16297649,0.00016428,2]
[359045479,1745673031966,-500.0,0.00016428,2]
[359045480,1745673031975,-500.0,0.00016428,2]
[359045481,1745673031985,-500.0,0.00016428,2]
[359045482,1745673031995,-500.0,0.00016428,2]
[359045483,1745673032004,-457.3051562,0.00016428,2]
[359045484,1745673032016,-42.6948438,0.00016428,2]
[359045485,1745673032028,-500.0,0.00016428,2]
[359045486,1745673032041,-46.5951562,0.00016428,2]
[359045487,1745673032064,-453.4048438,0.00016428,2]
[359045488,1745673032074,-500.0,0.00016428,2]
[359045489,1745673032084,-500.0,0.00016428,2]
[359045490,1745673032095,-500.0,0.00016428,2]
[359045491,1745673032105,-205.03186188,0.00016428,2]
[359045492,1745673032115,-500.0,0.00016428,2]
[359045493,1745673032125,-500.0,0.00016428,2]
[359045494,1745673032134,-500.0,0.00016428,2]
[359045495,1745673032144,-302.93496957,0.00016437,2]
[359045496,1745673032154,-159.17154997,0.00016437,2]
[359045497,1745673032164,-375.72094617,0.00016437,2]
[359045498,1745673032175,-151.0,0.00016438,2]
[359045499,1745673032185,-400.0,0.00016438,2]
[359045500,1745673032200,-500.0,0.00016438,2]
[359045501,1745673032214,-500.0,0.00016438,2]
[359045502,1745673032229,-400.0,0.00016438,2]
[359045503,1745673032243,-454.9204007,0.00016438,2]
[359045504,1745673032253,-500.0,0.00016438,2]
[359045505,1745673032263,-400.0,0.00016438,2]
[359045506,1745673032274,-400.0,0.00016438,2]
[359045507,1745673032284,-689.12,0.00016438,2]
[359045508,1745673032294,-500.0,0.00016438,2]
[359045509,1745673032305,-400.0,0.00016438,2]
[359045510,1745673032315,-460.63543338,0.00016438,2]
[359045511,1745673032324,-400.0,0.00016438,2]
[359045512,1745673032334,-400.0,0.00016438,2]
[359045513,1745673032344,-351.17669902,0.00016438,2]
[359045514,1745673032355,-500.0,0.00016438,2]
[359045515,1745673032365,-388.82921704,0.00016438,2]
[359045516,1745673033065,-111.17078296,0.00016438,2]
[359045517,1745673033075,-500.0,0.00016438,2]
[359045518,1745673033085,-500.0,0.00016438,2]
[359045519,1745673033095,-500.0,0.00016438,2]
[359045520,1745673033105,-863.09,0.00016438,2]
[359045521,1745673033115,-400.0,0.00016438,2]
[359045522,1745673033124,-58.54648979,0.00016438,2]
[359045523,1745673033137,-518.93351021,0.00016438,2]
[359045524,1745673033146,-400.0,0.00016438,2]
[359045525,1745673033156,-400.0,0.00016438,2]
[359045526,1745673033166,-400.0,0.00016438,2]
[359045527,1745673033176,-400.0,0.00016438,2]
[359045528,1745673033186,-1048.44,0.00016438,2]
[359045529,1745673033196,-505.81519551,0.00016438,2]
[359045530,1745673033206,-400.0,0.00016438,2]
[359045531,1745673033216,-537.6552626,0.00016438,2]
[359045532,1745673033226,-400.0,0.00016438,2]
[359045533,1745673033236,-780.26,0.00016438,2]
[359045534,1745673033246,-500.0,0.00016438,2]
[359045535,1745673033259,-1138.2,0.00016438,2]
[359045536,1745673033270,-500.0,0.00016438,2]
[359045537,1745673033280,-400.0,0.00016438,2]
[359045538,1745673033290,-400.0,0.00016438,2]
[359045539,1745673033300,-400.0,0.00016438,2]
[359045540,1745673033311,-721.47749754,0.00016438,2]
[359045547,1745673037801,-2093.38250246,0.00016438,2]
[359045549,1745673037811,-400.0,0.00016438,2]
[359045551,1745673037820,-400.0,0.00016438,2]
[359045553,1745673037830,-1163.17,0.00016438,2]
[359045555,1745673037841,-915.97,0.00016438,2]
[359045556,1745673037851,-438.7766455,0.00016438,2]
[359045557,1745673037861,-1732.1,0.00016438,2]
[359045558,1745673037873,-290.98,0.00016438,2]
[359045559,1745673037885,-400.0,0.00016438,2]
[359045560,1745673037896,-500.0,0.00016438,2]
[359045561,1745673037907,-400.0,0.00016438,2]
[359045562,1745673037919,-500.0,0.00016438,2]
[359045563,1745673037930,-550.87,0.00016438,2]
[359045564,1745673037941,-477.59206855,0.00016438,2]
[359045565,1745673037952,-400.0,0.00016438,2]
[359045566,1745673037962,-596.53,0.00016438,2]
[359045567,1745673037972,-400.0,0.00016438,2]
[359045568,1745673037982,-500.0,0.00016438,2]
[359045569,1745673037992,-553.48,0.00016438,2]
[359045570,1745673038002,-400.0,0.00016438,2]
[359045571,1745673038013,-400.0,0.00016438,2]
[359045572,1745673038023,-400.0,0.00016438,2]
[359045573,1745673038032,-400.0,0.00016438,2]
[359045574,1745673038042,-500.0,0.00016438,2]
[359045575,1745673038051,-400.0,0.00016438,2]
[359045576,1745673038062,-1061.39,0.00016438,2]
[359045577,1745673038072,-626.77,0.00016438,2]
[359045579,1745673038082,-894.63,0.00016438,2]
[359045581,1745673038092,-500.0,0.00016438,2]
[359045583,1745673038102,-151.57471262,0.00016438,2]
[359045585,1745673038111,-500.0,0.00016438,2]
[359045587,1745673038121,-812.32,0.00016438,2]
[359045589,1745673038131,-400.0,0.00016438,2]
[359045591,1745673038141,-400.0,0.00016438,2]
[359045593,1745673038150,-400.0,0.00016438,2]
[359045595,1745673038160,-400.0,0.00016438,2]
[359045597,1745673038169,-1012.86,0.00016438,2]
[359045599,1745673038180,-400.0,0.00016438,2]
[359045602,1745673038189,-1519.55,0.00016438,2]
[359045604,1745673038199,-400.0,0.00016438,2]
[359045606,1745673038209,-400.0,0.00016438,2]
[359045608,1745673038219,-53.17910082,0.00016438,2]
[359045610,1745673038239,-346.82089918,0.00016438,2]
[359045612,1745673038249,-400.0,0.00016438,2]
[359045614,1745673038259,-400.0,0.00016438,2]
[359045616,1745673038268,-500.0,0.00016438,2]
[359045618,1745673038279,-500.0,0.00016438,2]
[359045620,1745673038289,-500.0,0.00016438,2]
[359045622,1745673038299,-500.0,0.00016438,2]
[359045624,1745673038310,-500.0,0.00016438,2]
[359045626,1745673038320,-410.93655777,0.00016438,2]
[359045628,1745673038330,-500.0,0.00016438,2]
[359045630,1745673038340,-500.0,0.00016438,2]
[359045632,1745673038350,-500.0,0.00016438,2]
[359045634,1745673038360,-1056.17,0.00016438,2]
[359045636,1745673038371,-827.32,0.00016438,2]
[359045638,1745673038381,-1256.04,0.00016438,2]
[359045640,1745673038391,-1080.37,0.00016438,2]
[359045642,1745673038400,-400.0,0.00016438,2]
[359045644,1745673038409,-400.0,0.00016438,2]
[359045646,1745673038420,-400.0,0.00016438,2]
[359045648,1745673038430,-500.0,0.00016438,2]
[359045650,1745673038439,-201.04105917,0.00016438,2]
[359045652,1745673038448,-400.0,0.00016438,2]
[359045654,1745673038458,-784.55,0.00016438,2]
[359045656,1745673038468,-1049.92,0.00016438,2]
[359045658,1745673038478,-160.0,0.00016626,2]
[359045660,1745673038488,-151.0,0.00016699,2]
[359045662,1745673038500,-151.0,0.000167,2]
[359045664,1745673038511,-151.0,0.00016712,2]
[359045666,1745673038521,-400.0,0.00016712,2]
[359045669,1745673038531,-400.0,0.00016712,2]
[359045670,1745673038541,-400.0,0.00016712,2]
[359045672,1745673038552,-160.77360596,0.00016712,2]
[359045674,1745673038561,-689.12,0.00016712,2]
[359045676,1745673038571,-400.0,0.00016712,2]
[359045678,1745673038581,-400.0,0.00016712,2]
[359045680,1745673038590,-400.0,0.00016712,2]
[359045682,1745673038600,-863.09,0.00016712,2]
[359045683,1745673038610,-400.0,0.00016712,2]
[359045684,1745673038619,-577.48,0.00016712,2]
[359045685,1745673038629,-400.0,0.00016712,2]
[359045686,1745673038638,-400.0,0.00016712,2]
[359045687,1745673038648,-400.0,0.00016712,2]
[359045688,1745673038657,-400.0,0.00016712,2]
[359045689,1745673038666,-400.0,0.00016712,2]
[359045690,1745673038676,-402.51377814,0.00016712,2]
[359045691,1745673038686,-1138.2,0.00016712,2]
[359045693,1745673038696,-400.0,0.00016712,2]
[359045695,1745673038705,-400.0,0.00016712,2]
[359045697,1745673038715,-400.0,0.00016712,2]
[359045699,1745673038725,-2814.86,0.00016712,2]
[359045701,1745673038735,-400.0,0.00016712,2]
[359045703,1745673038744,-179.89885364,0.00016712,2]
[359045705,1745673038754,-1163.17,0.00016712,2]
[359045707,1745673038764,-915.97,0.00016712,2]
[359045709,1745673038774,-1732.1,0.00016712,2]
[359045711,1745673038784,-400.0,0.00016712,2]
[359045713,1745673038794,-206.74530215,0.00016712,2]
[359045715,1745673038804,-550.87,0.00016712,2]
[359045717,1745673038819,-400.0,0.00016712,2]
[359045719,1745673038830,-596.53,0.00016712,2]
[359045721,1745673038840,-400.0,0.00016712,2]
[359045723,1745673038852,-553.48,0.00016712,2]
[359045725,1745673038874,-400.0,0.00016712,2]
[359045728,1745673038884,-400.0,0.00016712,2]
[359045730,1745673038895,-388.29,0.00016712,2]
[359045732,1745673038904,-400.0,0.00016712,2]
[359045734,1745673038914,-400.0,0.00016712,2]
[359045736,1745673038924,-1061.39,0.00016712,2]
[359045738,1745673038934,-626.77,0.00016712,2]
[359045740,1745673038945,-894.63,0.00016712,2]
[359045742,1745673038957,-812.32,0.00016712,2]
[359045744,1745673038967,-400.0,0.00016712,2]
[359045746,1745673038977,-400.0,0.00016712,2]
[359045748,1745673038987,-400.0,0.00016712,2]
[359045750,1745673038996,-400.0,0.00016712,2]
[359045752,1745673039008,-1012.86,0.00016712,2]
[359045753,1745673039017,-400.0,0.00016712,2]
[359045756,1745673039028,-1519.55,0.00016712,2]
[359045757,1745673039038,-400.0,0.00016712,2]
[359045760,1745673039047,-400.0,0.00016712,2]
[359045762,1745673039058,-400.0,0.00016712,2]
[359045764,1745673039067,-400.0,0.00016712,2]
[359045765,1745673039077,-400.0,0.00016712,2]
[359045767,1745673039087,-1056.17,0.00016712,2]
[359045769,1745673039096,-827.32,0.00016712,2]
[359045771,1745673039107,-1256.04,0.00016712,2]
[359045773,1745673039116,-1080.37,0.00016712,2]
[359045775,1745673039126,-400.0,0.00016712,2]
[359045777,1745673039136,-400.0,0.00016712,2]
[359045779,1745673039145,-400.0,0.00016712,2]
[359045781,1745673039155,-400.0,0.00016712,2]
[359045783,1745673039165,-784.55,0.00016712,2]
[359045785,1745673039174,-1049.92,0.00016712,2]
[359045787,1745673039184,-151.0,0.00016773,2]
[359045789,1745673039195,-151.0,0.000168,2]
[359045791,1745673039204,-355.18491042,0.0001688,2]
[359045793,1745673039214,-303.0,0.000169,2]
[359045795,1745673039224,-2845.09905724,0.000169,2]
[359045797,1745673039238,-151.0,0.00016953,2]
[359045799,1745673039249,-633.92,0.00016976,3]
[359045801,1745673039262,-151.0,0.00016986,2]
[359045803,1745673039272,-151.0,0.00016986,2]
[359045805,1745673039282,-400.0,0.00016986,2]
[359045807,1745673039292,-152.702,0.00016986,2]
[359045809,1745673039303,-400.0,0.00016986,2]
[359045811,1745673039314,-689.12,0.00016986,2]
[359045813,1745673039324,-400.0,0.00016986,2]
[359045815,1745673039334,-400.0,0.00016986,2]
[359045817,1745673039344,-400.0,0.00016986,2]
[359045819,1745673039354,-863.09,0.00016986,2]
[359045821,1745673039364,-400.0,0.00016986,2]
[359045823,1745673039374,-577.48,0.00016986,2]
[359045825,1745673039384,-469.19418769,0.00016986,2]
[359045827,1745673039393,-311.85,0.00016986,2]
[359045829,1745673039403,-400.0,0.00016986,2]
[359045831,1745673039412,-400.0,0.00016986,2]
[359045833,1745673039422,-400.0,0.00016986,2]
[359045835,1745673039431,-1138.2,0.00016986,2]
[359045837,1745673039441,-400.0,0.00016986,2]
[359045839,1745673039450,-400.0,0.00016986,2]
[359045841,1745673039460,-400.0,0.00016986,2]
[359045843,1745673039470,-2814.86,0.00016986,2]
[359045845,1745673039480,-200.0,0.00016986,2]
[359045848,1745673039490,-1163.17,0.00016986,2]
[359045850,1745673039500,-915.97,0.00016986,2]
[359045853,1745673039510,-1732.1,0.00016986,2]
[359045855,1745673039520,-400.0,0.00016986,2]
[359045857,1745673039529,-550.87,0.00016986,2]
[359045859,1745673039539,-424.26362391,0.00016986,2]
[359045861,1745673039550,-596.53,0.00016986,2]
[359045864,1745673039559,-493.05059115,0.00016986,2]
[359045867,1745673039569,-553.48,0.00016986,2]
[359045870,1745673039579,-400.0,0.00016986,2]
[359045873,1745673039588,-248.04,0.00016986,2]
[359045876,1745673039598,-400.0,0.00016986,2]
[359045879,1745673039608,-400.0,0.00016986,2]
[359045882,1745673039619,-1061.39,0.00016986,2]
[359045885,1745673039628,-626.77,0.00016986,2]
[359045888,1745673039638,-894.63,0.00016986,2]
[359045891,1745673039648,-812.32,0.00016986,2]
[359045894,1745673039657,-400.0,0.00016986,2]
[359045897,1745673039667,-400.0,0.00016986,2]
[359045900,1745673039677,-400.0,0.00016986,2]
[359045903,1745673039687,-400.0,0.00016986,2]
[359045906,1745673039697,-1012.86,0.00016986,2]
[359045909,1745673039711,-400.0,0.00016986,2]
[359045912,1745673039721,-1519.55,0.00016986,2]
[359045915,1745673039730,-400.0,0.00016986,2]
[359045918,1745673039740,-400.0,0.00016986,2]
[359045921,1745673039749,-400.0,0.00016986,2]
[359045923,1745673039759,-400.0,0.00016986,2]
[359045925,1745673039769,-400.0,0.00016986,2]
[359045926,1745673039780,-1056.17,0.00016986,2]
[359045929,1745673039791,-827.32,0.00016986,2]
[359045931,1745673039801,-1256.04,0.00016986,2]
[359045933,1745673039811,-1080.37,0.00016986,2]
[359045934,1745673039820,-400.0,0.00016986,2]
[359045937,1745673039829,-400.0,0.00016986,2]
[359045939,1745673039838,-400.0,0.00016986,2]